fUST/lending_fUST_20240127
["ID","MTS","AMOUNT","RATE_DAILY","PERIOD"]
[312810786,1706286652509,-1493.74357391,0.00045,15]
[312810788,1706286652518,-252.012518,0.00045,4]
[312810790,1706286652527,-564.3312613,0.00045,2]
[312810792,1706286652536,-2769.8397898,0.00045,30]
[312810794,1706286652546,-5000.0,0.00045,15]
[312810796,1706286652556,-151.27878534,0.00045,5]
[312810798,1706286652565,-220.914978,0.00045,7]
[312810800,1706286652575,-604.37520057,0.00045,15]
[312810802,1706286652584,-1082.79052222,0.00045,15]
[312810804,1706286652593,-2742.36136885,0.00045,15]
[312810806,1706286652603,-151.0,0.00045,7]
[312810808,1706286652612,-151.0,0.00045,7]
[312810810,1706286652621,-151.0,0.00045,7]
[312810812,1706286652630,-151.0,0.00045,7]
[312810814,1706286652639,-2284.65851696,0.00045,6]
[312810816,1706286652648,-525.0,0.00045,15]
[312810818,1706286652657,-500.87,0.00045,7]
[312810820,1706286652666,-522.140248,0.00045,7]
[312810822,1706286652675,-522.140248,0.00045,7]
[312810824,1706286652684,-522.140248,0.00045,7]
[312810826,1706286652693,-522.140248,0.00045,7]
[312810828,1706286652702,-522.140248,0.00045,7]
[312810830,1706286652711,-522.140248,0.00045,7]
[312810832,1706286652720,-522.140248,0.00045,7]
[312810834,1706286652729,-522.140248,0.00045,7]
[312810836,1706286652738,-175.04419341,0.00045091,30]
[312810838,1706286652747,-157.07269304,0.00045092,30]
[312810840,1706286652756,-157.07269304,0.00045105,30]
[312810842,1706286652765,-150.5,0.00045215,120]
[312810844,1706286652774,-157.07269306,0.00045215,30]
[312810846,1706286652783,-150.5,0.00045225,120]
[312810848,1706286652792,-165.25,0.00045231,120]
[312810850,1706286652802,-150.5,0.00045235,120]
[312810852,1706286652812,-249.609938,0.00045263,30]
[312810854,1706286652821,-384.669527,0.00045263,30]
[312810856,1706286652830,-1711.964863,0.00045263,30]
[312810858,1706286652839,-1219.413068,0.00045263,30]
[312810860,1706286652849,-700.0,0.00045282,7]
[312810862,1706286652858,-700.0,0.00045292,7]
[312810863,1706286652867,-1000.0,0.000453,7]
[312810865,1706286652877,-700.0,0.00045302,7]
[312810867,1706286652886,-172.10083677,0.00045308,4]
[312810869,1706286652895,-160.0,0.00045315,5]
[312810871,1706286652904,-491.0,0.0004537,120]
[312810873,1706286652913,-290.0,0.0004537,120]
[312810875,1706286652923,-252.0,0.0004537,120]
[312810877,1706286652932,-150.5,0.0004537,120]
[312810879,1706286652941,-491.0,0.0004538,120]
[312810881,1706286652950,-290.0,0.0004538,120]
[312810884,1706286652961,-491.0,0.0004538,120]
[312810886,1706286652971,-290.0,0.0004538,120]
[312810888,1706286652981,-252.0,0.0004538,120]
[312810889,1706286652990,-150.5,0.0004538,120]
[312810891,1706286652999,-252.0,0.0004538,120]
[312810893,1706286653008,-228.72,0.0004538,120]
[312810895,1706286653017,-491.0,0.0004539,120]
[312810897,1706286653025,-290.0,0.0004539,120]
[312810899,1706286653035,-491.0,0.0004539,120]
[312810901,1706286653044,-290.0,0.0004539,120]
[312810903,1706286653053,-252.0,0.0004539,120]
[312810905,1706286653061,-150.5,0.0004539,120]
[312810907,1706286653070,-252.0,0.0004539,120]
[312810909,1706286653084,-150.5,0.0004539,120]
[312810911,1706286653093,-500.0,0.00045479,31]
[312810913,1706286653102,-500.0,0.00045479,31]
[312810915,1706286653111,-500.0,0.00045479,31]
[312810917,1706286653120,-500.0,0.00045479,31]
[312810919,1706286653130,-500.0,0.00045479,31]
[312810921,1706286653139,-500.0,0.00045479,31]
[312810923,1706286653148,-600.0,0.00045479,2]
[312810925,1706286653157,-500.0,0.00045479,31]
[312810927,1706286653166,-500.0,0.00045479,31]
[312810929,1706286653176,-500.0,0.00045479,31]
[312810931,1706286653184,-500.0,0.00045479,31]
[312810933,1706286653194,-500.0,0.00045479,31]
[312810935,1706286653203,-500.0,0.00045479,31]
[312810936,1706286653212,-1660.51,0.00045479,31]
[312810938,1706286653220,-1811.17,0.00045479,2]
[312810940,1706286653229,-500.0,0.00045479,31]
[312810942,1706286653238,-607.99898121,0.00045479,31]
[312810944,1706286653247,-500.0,0.00045479,31]
[312810946,1706286653256,-859.66,0.00045479,31]
[312810948,1706286653265,-500.0,0.00045479,31]
[312810950,1706286653274,-500.0,0.00045479,31]
[312810952,1706286653284,-1000.0,0.00045479,2]
[312810954,1706286653293,-593.92818529,0.00045479,2]
[312810956,1706286653303,-500.0,0.00045479,7]
[312810958,1706286653312,-500.0,0.00045479,31]
[312810960,1706286653321,-500.0,0.00045479,31]
[312810962,1706286653330,-500.0,0.00045479,31]
[312810964,1706286653339,-598.46,0.00045479,31]
[312810966,1706286653348,-1688.27,0.00045479,31]
[312810967,1706286653357,-491.91883271,0.00045479,31]
[312810977,1706286653437,-500.0,0.00045479,2]
[312810979,1706286653446,-500.0,0.00045479,31]
[312810981,1706286653455,-500.0,0.00045479,31]
[312810983,1706286653464,-500.0,0.00045479,31]
[312810985,1706286653473,-604.1,0.00045479,2]
[312810987,1706286653483,-500.0,0.00045479,31]
[312810989,1706286653492,-554.47,0.00045479,31]
[312810991,1706286653502,-500.0,0.00045479,7]
[312810993,1706286653511,-500.0,0.00045479,31]
[312810995,1706286653520,-500.0,0.00045479,31]
[312810997,1706286653534,-500.0,0.00045479,31]
[312810999,1706286653578,-1569.02,0.00045479,31]
[312811001,1706286653587,-500.0,0.00045479,31]
[312811003,1706286653596,-500.0,0.00045479,31]
[312811005,1706286653606,-500.0,0.00045479,31]
[312811007,1706286653615,-500.0,0.00045479,31]
[312811009,1706286653625,-500.0,0.00045479,31]
[312811011,1706286653634,-640.30947492,0.00045479,7]
[312811013,1706286653643,-500.0,0.00045479,31]
[312811015,1706286653653,-500.0,0.00045479,31]
[312811017,1706286653663,-511.62020834,0.00045479,31]
[312811018,1706286653672,-500.0,0.00045479,31]
[312811020,1706286653681,-500.0,0.00045479,31]
[312811022,1706286653691,-500.0,0.00045479,31]
[312811025,1706286653701,-500.0,0.00045479,31]
[312811026,1706286653710,-926.05,0.00045479,31]
[312811027,1706286653719,-364.43889138,0.00045479,31]
[312811028,1706286653728,-500.0,0.00045479,31]
[312811029,1706286653738,-500.0,0.00045479,31]
[312811030,1706286653748,-500.0,0.00045479,31]
[312811031,1706286653757,-1235.37,0.00045479,31]
[312811032,1706286653767,-500.0,0.00045479,31]
[312811033,1706286653776,-500.0,0.00045479,7]
[312811034,1706286653785,-617.61,0.00045479,31]
[312811035,1706286653794,-1060.56,0.00045479,31]
[312811036,1706286653802,-500.0,0.00045479,31]
[312811037,1706286653811,-500.0,0.00045479,31]
[312811038,1706286653820,-500.0,0.00045479,31]
[312811039,1706286653829,-500.0,0.00045479,31]
[312811041,1706286653838,-500.0,0.00045479,31]
[312811043,1706286653847,-500.0,0.00045479,31]
[312811045,1706286653856,-1000.0,0.00045479,2]
[312811047,1706286653866,-631.81,0.00045479,31]
[312811049,1706286653876,-500.0,0.00045479,31]
[312811051,1706286653885,-500.0,0.00045479,31]
[312811053,1706286653895,-500.0,0.00045479,31]
[312811055,1706286653904,-500.0,0.00045479,31]
[312811057,1706286653913,-500.0,0.00045479,31]
[312811059,1706286653923,-500.0,0.00045479,31]
[312811061,1706286653932,-2446.53,0.00045479,31]
[312811063,1706286653941,-500.0,0.00045479,31]
[312811065,1706286653950,-1424.05,0.00045479,31]
[312811067,1706286653959,-1137.58,0.00045479,31]
[312811069,1706286653969,-1723.45,0.00045479,2]
[312811071,1706286653978,-500.0,0.00045479,31]
[312811073,1706286653987,-510.08,0.00045479,31]
[312811075,1706286653996,-4271.7,0.00045479,31]
[312811077,1706286654005,-500.0,0.00045479,31]
[312811079,1706286654014,-500.0,0.00045479,31]
[312811081,1706286654023,-500.0,0.00045479,31]
[312811083,1706286654032,-500.0,0.00045479,31]
[312811085,1706286654041,-1084.72,0.00045479,10]
[312811087,1706286654050,-500.0,0.00045479,31]
[312811088,1706286654060,-1000.0,0.00045479,2]
[312811090,1706286654069,-500.0,0.00045479,31]
[312811092,1706286654079,-500.0,0.00045479,31]
[312811094,1706286654091,-500.0,0.00045479,31]
[312811096,1706286654101,-577.3954959,0.00045479,31]
[312811098,1706286654110,-500.0,0.00045479,31]
[312811100,1706286654119,-500.0,0.00045479,31]
[312811102,1706286654130,-500.0,0.00045479,31]
[312811104,1706286654139,-500.0,0.00045479,31]
[312811106,1706286654148,-500.0,0.00045479,31]
[312811108,1706286654157,-500.0,0.00045479,31]
[312811110,1706286654166,-500.0,0.00045479,31]
[312811112,1706286654176,-7150.01,0.00045479,31]
[312811115,1706286654186,-500.0,0.00045479,31]
[312811117,1706286654196,-1720.61,0.00045479,31]
[312811119,1706286654205,-1066.01,0.00045479,31]
[312811121,1706286654214,-10641.42,0.00045479,14]
[312811123,1706286654223,-2660.42,0.00045479,2]
[312811125,1706286654232,-2677.3,0.00045479,31]
[312811127,1706286654241,-500.0,0.00045479,31]
[312811129,1706286654250,-500.0,0.00045479,31]
[312811131,1706286654259,-500.0,0.00045479,31]
[312811133,1706286654268,-500.0,0.00045479,31]
[312811135,1706286654277,-500.0,0.00045479,31]
[312811137,1706286654286,-1147.55,0.00045479,31]
[312811139,1706286654295,-504.1,0.00045479,31]
[312811141,1706286654304,-7000.0,0.000455,120]
[312811143,1706286654313,-150.0,0.00045578,30]
[312811145,1706286654322,-151.0,0.00045765,7]
[312811146,1706286654331,-151.0,0.00045765,7]
[312811148,1706286654341,-151.0,0.00045765,7]
[312811151,1706286654350,-104076.41603977,0.0004591,2]
[312811160,1706286654425,-700.0,0.0004578,7]
[312811162,1706286654434,-499.45,0.0004578,120]
[312811164,1706286654443,-290.0,0.0004578,120]
[312811166,1706286654452,-700.0,0.0004579,7]
[312811168,1706286654461,-491.0,0.0004579,120]
[312811170,1706286654470,-290.0,0.0004579,120]
[312811172,1706286654479,-249.609938,0.00045808,30]
[312811174,1706286654488,-384.669527,0.00045808,30]
[312811176,1706286654497,-1711.964863,0.00045808,30]
[312811178,1706286654505,-1219.413068,0.00045808,30]
[312811180,1706286654514,-252.31,0.0004583,120]
[312811181,1706286654523,-252.0,0.0004584,120]
[312811184,1706286654533,-160.0,0.00045871,6]
[312811186,1706286654542,-1384.98482903,0.00045909,4]
[312811187,1706286654551,-4859.64484532,0.0004591,2]
[312811190,1706286654567,-155.0,0.00039987,2]
[312811192,1706286654576,-11350.20102498,0.0004591,2]
[312811194,1706286654587,-53646.33487506,0.0004591,2]
[312811207,1706286654691,-0.95265873,0.0004591,2]
[312811388,1706286659353,5899.90708831,0.00023734,2]
[312811389,1706286684795,454.77590654,0.00031,4]
[312811390,1706286686735,400.52132555,0.00023734,2]
[312811391,1706286691507,1307.56600213,0.0003383,2]
[312811392,1706286695863,1275.30456726,0.00032458,2]
[312811393,1706286702887,764.62995522,0.00025,2]
[312811394,1706286704813,322.05421265,0.00031,4]
[312811395,1706286712743,183.82716764,0.00023734,2]
[312811396,1706286717865,1275.30456726,0.00032458,2]
[312811397,1706286722918,235.30572463,0.00025,2]
[312811398,1706286739865,909.87039082,0.00032458,2]
[312811399,1706286755962,194.96698665,0.00023738,2]
[312811400,1706286815239,213.959044,0.00030137,2]
[312811401,1706286848099,7015.00269845,0.00035,2]
[312811402,1706286968004,3023.65,0.0003,120]
[312811768,1706287842120,-290.6211574,0.00028351,2]
[312811770,1706287842134,-155.74881665,0.00028352,2]
[312811772,1706287842145,-295.0754832,0.00028451,2]
[312811774,1706287842155,-154.9690062,0.00028452,2]
[312811777,1706287842167,-426.28921801,0.00028452,2]
[312811781,1706287842179,-498.7732517,0.00028453,5]
[312811783,1706287842194,-166.666666,0.00028468,2]
[312811786,1706287842212,-2511.55648517,0.00028654,2]
[312812031,1706287873493,-18373.41724776,0.00028654,2]
[312812032,1706287873522,-24900.0,0.00028655,2]
[312812033,1706287873545,-166.666666,0.00029244,2]
[312812034,1706287873584,-2130.40626994,0.00029994,2]
[312812035,1706287873612,-1109.98253014,0.0003,4]
[312812036,1706287873659,-1855.23942684,0.0003,4]
[312812037,1706287873678,-537.44070193,0.0003,4]
[312812038,1706287873701,-1174.09590054,0.0003,2]
[312812039,1706287873724,-684.06765609,0.0003,4]
[312812040,1706287873744,-620.37329655,0.0003,4]
[312812041,1706287873769,-154.9690062,0.0003,4]
[312812042,1706287873801,-1114.65598908,0.0003,4]
[312812043,1706287873851,-157.08029083,0.0003,4]
[312812044,1706287873867,-4291.99988802,0.0003,4]
[312812045,1706287873886,-548.10984714,0.0003,4]
[312812046,1706287873933,-615.00395477,0.0003,4]
[312812048,1706287873964,-343.19914178,0.0003,4]
[312812049,1706287873987,-290.14513525,0.0003,4]
[312812051,1706287874018,-154.9690062,0.0003,4]
[312812052,1706287874053,-206.2371887,0.0003,4]
[312812053,1706287874071,-156.86488031,0.0003,4]
[312812054,1706287874090,-166.666666,0.0003002,2]
[312812055,1706287874116,-213.9590447,0.00030137,2]
[312812056,1706287874134,-158.280104,0.00030316,2]
[312812057,1706287874162,-166.666666,0.00030796,2]
[312812058,1706287874194,-519.74389319,0.00031,4]
[312812059,1706287874226,-166.666666,0.00031573,2]
[312812060,1706287874247,-166.666666,0.00032349,2]
[312812061,1706287874263,-200.80913645,0.000348,2]
[312812062,1706287874283,-501.72235498,0.0003571,5]
[312812063,1706287874314,-390.46988519,0.0003571,4]
[312812064,1706287874333,-269.20480479,0.00036591,2]
[312812065,1706287874357,-3191.11,0.0003711,3]
[312812066,1706287874374,-4225.86,0.0003712,3]
[312812067,1706287874404,-5071.04,0.0003713,3]
[312812068,1706287874415,-6085.24,0.0003714,3]
[312812069,1706287874446,-12267.60075838,0.0003715,5]
[312812070,1706287874461,-155.07717363,0.00037345,4]
[312812071,1706287874482,-2074.57916651,0.00037589,4]
[312812072,1706287874503,-195.54104758,0.00037589,2]
[312812073,1706287874520,-7384.14849766,0.00037589,4]
[312812074,1706287874550,-290.47395949,0.00037589,2]
[312812075,1706287874567,-4149.46727141,0.00037589,2]
[312812076,1706287874598,-174.85931535,0.00037589,4]
[312812078,1706287874620,-155.61962253,0.00037589,4]
[312812079,1706287874632,-213.43652609,0.00037589,4]
[312812080,1706287874654,-3317.37282772,0.00037589,2]
[312812081,1706287874674,-295.29373989,0.00037589,4]
[312812082,1706287874690,-2371.98806335,0.00037589,2]
[312812083,1706287874711,-178.47798681,0.00037589,4]
[312812084,1706287874736,-309.9690031,0.00037589,4]
[312812085,1706287874759,-637.58941322,0.00037589,2]
[312812086,1706287874773,-154.97435718,0.00037589,4]
[312812087,1706287874794,-155.14723407,0.00037589,4]
[312812088,1706287874821,-210.02000714,0.00037589,4]
[312812089,1706287874846,-155.08779782,0.00037589,2]
[312812090,1706287874866,-162.78630134,0.00037589,6]
[312812091,1706287874890,-154.9690062,0.00037589,4]
[312812092,1706287874909,-683.59100991,0.00037589,4]
[312812093,1706287874931,-200.0,0.00037589,4]
[312812094,1706287874948,-154.98450155,0.00037589,4]
[312812096,1706287874967,-166.73340823,0.00037589,4]
[312812097,1706287874996,-157.1119955,0.00037589,4]
[312812098,1706287875010,-12913.9352137,0.00037589,4]
[312812099,1706287875030,-159.91483238,0.00037589,4]
[312812100,1706287875051,-2894.80947478,0.00037589,4]
[312812101,1706287875085,-594.91775281,0.00037589,4]
[312812102,1706287875097,-265.62893256,0.00037589,4]
[312812103,1706287875130,-301.77611122,0.00037589,4]
[312812104,1706287875146,-180.71261798,0.00037589,4]
[312812105,1706287875184,-156.70873528,0.00037589,10]
[312812106,1706287875207,-155.71935238,0.00037589,4]
[312812107,1706287875223,-155.10768829,0.00037589,4]
[312812108,1706287875364,-298.52344794,0.00037589,4]
[312812109,1706287875394,-161.86475749,0.00037589,4]
[312812110,1706287875420,-508.62808306,0.00037589,2]
[312812111,1706287875435,-1292.59267932,0.00037589,4]
[312812112,1706287875456,-300.0,0.00037589,4]
[312812113,1706287875469,-154.96901859,0.00037589,4]
[312812114,1706287875483,-425.92233863,0.00037589,2]
[312812115,1706287875503,-294.61812691,0.00037589,4]
[312812116,1706287875523,-2115.00129918,0.00037589,4]
[312812117,1706287875563,-151.0,0.0003759,2]
[312812118,1706287875578,-151.0,0.0003759,2]
[312812119,1706287875597,-232.83,0.0003759,2]
[312812120,1706287875617,-232.83,0.0003759,2]
[312812121,1706287875644,-232.83,0.0003759,2]
[312812122,1706287875682,-232.83,0.0003759,2]
[312812123,1706287875702,-4724.75315233,0.0003759,4]
[312812124,1706287875719,-1942.40988753,0.0003759,4]
[312812125,1706287875738,-276000.0,0.00037591,2]
[312812126,1706287875755,-300.0,0.000377,19]
[312812127,1706287875784,-313.6891721,0.00037805,3]
[312812128,1706287875829,-777.0,0.00038,4]
[312812129,1706287875867,-150.0,0.00038176,2]
[312812130,1706287875891,-10860.26143709,0.00038427,4]
[312812131,1706287875908,-3883.7324073,0.00038427,2]
[312812132,1706287875945,-2115.31320198,0.00038427,2]
[312812133,1706287875974,-2142.39328841,0.000385,4]
[312812134,1706287875996,-3000.0,0.00039,120]
[312812135,1706287876018,-558.009413,0.000392,20]
[312812136,1706287876035,-453.20212845,0.0003999,4]
[312812137,1706287876055,-315.84299103,0.0004,4]
[312812138,1706287876078,-2000.0,0.0004,27]
[312812139,1706287876095,-2000.0,0.0004001,27]
[312812140,1706287876118,-2000.0,0.0004002,27]
[312812141,1706287876137,-3388.395666,0.0004003,27]
[312812142,1706287876161,-300.0,0.000403,15]
[312812143,1706287876212,-200.0,0.000404,4]
[312812144,1706287876231,-154.98450155,0.00040498,4]
[312812145,1706287876270,-150.1,0.00040508,2]
[312812146,1706287876294,-500.0,0.000406,15]
[312812147,1706287876310,-500.0,0.00041095,2]
[312812148,1706287876342,-151.91582442,0.00041095,7]
[312812149,1706287876355,-150.0,0.00041176,2]
[312812150,1706287876383,-230.714539,0.0004119,30]
[312812151,1706287876409,-158.120799,0.0004119,30]
[312812152,1706287876423,-163.343131,0.0004119,30]
[312812153,1706287876442,-160.152526,0.0004119,30]
[312812154,1706287876473,-163.343135,0.0004119,30]
[312812155,1706287876495,-163.189884,0.0004119,30]
[312812156,1706287876517,-230.714539,0.0004119,30]
[312812157,1706287876528,-158.120799,0.0004119,30]
[312812158,1706287876559,-160.177997,0.0004133,21]
[312812159,1706287876589,-1000.35120883,0.00041494,4]
[312812160,1706287876604,-727.7792225,0.00041494,4]
[312812161,1706287876637,-1064.05593202,0.00041494,30]
[312812162,1706287876658,-230.714539,0.00041705,30]
[312812163,1706287876674,-158.120799,0.00041705,30]
[312812164,1706287876701,-230.714539,0.00041705,30]
[312812165,1706287876726,-158.120799,0.00041705,30]
[312812166,1706287876753,-354.25312744,0.00041978,4]
[312812167,1706287876775,-540.62353099,0.00041978,4]
[312812168,1706287876795,-151.0,0.00041979,7]
[312812169,1706287876819,-151.0,0.00041979,7]
[312812170,1706287876843,-151.0,0.00041979,7]
[312812171,1706287876864,-421.92881091,0.0004198,3]
[312812172,1706287876889,-228366.53024426,0.0004198,10]
[312812173,1706287876921,-230.714539,0.0004222,30]
[312812174,1706287876932,-158.120799,0.0004222,30]
[312812175,1706287876954,-230.714539,0.0004222,30]
[312812176,1706287876979,-158.120799,0.0004222,30]
[312812177,1706287876991,-223.51810289,0.00042699,31]
[312812178,1706287877019,-500.0,0.00042699,31]
[312812179,1706287877052,-598.65430698,0.00042699,31]
[312812180,1706287877070,-500.0,0.00042699,31]
[312812181,1706287877097,-618.40761947,0.00042699,31]
[312812182,1706287877127,-500.0,0.00042699,31]
[312812183,1706287877145,-241.60116461,0.00042699,31]
[312812184,1706287877168,-485.60639442,0.00042699,31]
[312812185,1706287877188,-500.0,0.00042699,31]
[312812186,1706287877202,-500.0,0.00042699,31]
[312812187,1706287877226,-500.0,0.00042699,31]
[312812188,1706287877252,-500.0,0.00042699,31]
[312812189,1706287877272,-500.0,0.00042699,31]
[312812190,1706287877287,-500.0,0.00042699,31]
[312812191,1706287877309,-500.0,0.00042699,31]
[312812192,1706287877338,-500.0,0.00042699,31]
[312812193,1706287877350,-500.0,0.00042699,31]
[312812194,1706287877377,-500.0,0.00042699,31]
[312812195,1706287877396,-500.0,0.00042699,31]
[312812196,1706287877414,-500.0,0.00042699,31]
[312812197,1706287877432,-644.3681498,0.00042699,31]
[312812198,1706287877455,-409.14905199,0.000427,30]
[312812199,1706287877478,-409.14905199,0.000427,30]
[312812200,1706287877494,-409.14905199,0.000427,30]
[312812201,1706287877511,-409.14905199,0.000427,30]
[312812202,1706287877535,-409.14905199,0.000427,30]
[312812203,1706287877556,-409.14905199,0.000427,30]
[312812204,1706287877584,-409.14905199,0.000427,30]
[312812205,1706287877612,-409.14905199,0.000427,30]
[312812206,1706287877654,-409.14905199,0.000427,30]
[312812207,1706287877681,-409.14905,0.000427,30]
[312812208,1706287877714,-230.714539,0.00042735,30]
[312812209,1706287877727,-158.120799,0.00042735,30]
[312812210,1706287877747,-230.714539,0.00042735,30]
[312812211,1706287877767,-158.120799,0.00042735,30]
[312812212,1706287877788,-230.714539,0.0004325,30]
[312812213,1706287877807,-158.120799,0.0004325,30]
[312812214,1706287877828,-230.714539,0.0004325,30]
[312812215,1706287877870,-158.120799,0.0004325,30]
[312812216,1706287877891,-220.26,0.00043834,7]
[312812217,1706287877905,-500.0,0.00043835,31]
[312812218,1706287877941,-1000.0,0.00043835,2]
[312812219,1706287877963,-500.0,0.00043835,31]
[312812220,1706287877982,-500.0,0.00043835,7]
[312812221,1706287878001,-1406.89,0.00043835,31]
[312812222,1706287878018,-500.0,0.00043835,2]
[312812223,1706287878053,-500.0,0.00043835,31]
[312812224,1706287878074,-503.42,0.00043835,2]
[312812225,1706287878097,-500.0,0.00043835,31]
[312812226,1706287878127,-500.0,0.00043835,7]
[312812227,1706287878142,-500.0,0.00043835,31]
[312812228,1706287878158,-500.0,0.00043835,31]
[312812229,1706287878183,-500.0,0.00043835,31]
[312812230,1706287878200,-500.0,0.00043835,31]
[312812231,1706287878216,-716.39,0.00043835,31]
[312812232,1706287878241,-500.0,0.00043835,31]
[312812233,1706287878260,-500.0,0.00043835,31]
[312812234,1706287878276,-771.71,0.00043835,31]
[312812235,1706287878300,-279.23861408,0.00043835,31]
[312812236,1706287878325,-500.0,0.00043835,31]
[312812237,1706287878348,-511.24533538,0.00043835,2]
[312812238,1706287878366,-500.0,0.00043835,31]
[312812239,1706287878384,-500.0,0.00043835,31]
[312812240,1706287878415,-354.62508588,0.00043835,7]
[312812241,1706287878430,-465.81597108,0.00043835,31]
[312812242,1706287878449,-500.0,0.00043835,31]
[312812243,1706287878466,-1436.2,0.00043835,2]
[312812244,1706287878482,-500.0,0.00043835,31]
[312812245,1706287878500,-500.0,0.00043835,31]
[312812246,1706287878519,-500.0,0.00043835,31]
[312812247,1706287878535,-500.0,0.00043835,31]
[312812248,1706287878555,-500.0,0.00043835,31]
[312812249,1706287878572,-500.0,0.00043835,31]
[312812250,1706287878597,-500.0,0.00043835,31]
[312812251,1706287878613,-500.0,0.00043835,31]
[312812252,1706287878626,-500.0,0.00043835,31]
[312812253,1706287878651,-500.0,0.00043835,31]
[312812254,1706287878667,-500.0,0.00043835,31]
[312812255,1706287878682,-500.0,0.00043835,31]
[312812256,1706287878699,-584.70370875,0.00043835,31]
[312812257,1706287878716,-500.0,0.00043835,31]
[312812258,1706287878727,-500.0,0.00043835,31]
[312812259,1706287878753,-500.0,0.00043835,31]
[312812260,1706287878775,-500.0,0.00043835,31]
[312812261,1706287878798,-500.0,0.00043835,31]
[312812262,1706287878816,-500.0,0.00043835,31]
[312812263,1706287878834,-500.0,0.00043835,31]
[312812264,1706287878858,-500.0,0.00043835,31]
[312812265,1706287878887,-708.23,0.00043835,31]
[312812266,1706287878904,-500.0,0.00043835,31]
[312812267,1706287878931,-500.0,0.00043835,31]
[312812268,1706287878960,-500.0,0.00043835,31]
[312812269,1706287878974,-500.0,0.00043835,31]
[312812270,1706287879003,-500.0,0.00043835,31]
[312812271,1706287879022,-500.0,0.00043835,31]
[312812272,1706287879041,-500.0,0.00043835,31]
[312812273,1706287879060,-500.0,0.00043835,31]
[312812274,1706287879091,-846.97,0.00043835,31]
[312812275,1706287879114,-600.0,0.00043835,2]
[312812276,1706287879131,-168.75135199,0.00043835,31]
[312812277,1706287879150,-500.0,0.00043835,31]
[312812278,1706287879173,-500.0,0.00043835,31]
[312812279,1706287879196,-500.0,0.00043835,31]
[312812280,1706287879224,-500.0,0.00043835,31]
[312812281,1706287879243,-500.0,0.00043835,31]
[312812282,1706287879275,-526.51,0.00043835,31]
[312812283,1706287879289,-500.0,0.00043835,31]
[312812284,1706287879328,-500.0,0.00043835,31]
[312812285,1706287879346,-500.0,0.00043835,31]
[312812286,1706287879358,-500.0,0.00043835,31]
[312812287,1706287879382,-1953.82,0.00043835,31]
[312812288,1706287879401,-500.0,0.00043835,31]
[312812289,1706287879432,-500.0,0.00043835,31]
[312812290,1706287879455,-500.0,0.00043835,31]
[312812291,1706287879488,-584.17925574,0.00043835,31]
[312812292,1706287879501,-1038.36,0.00043835,31]
[312812293,1706287879524,-500.0,0.00043835,31]
[312812294,1706287879551,-500.0,0.00043835,31]
[312812295,1706287879572,-1000.0,0.00043835,2]
[312812296,1706287879591,-500.0,0.00043835,31]
[312812297,1706287879617,-500.0,0.00043835,31]
[312812298,1706287879633,-500.0,0.00043835,31]
[312812299,1706287879657,-500.0,0.00043835,31]
[312812300,1706287879696,-500.0,0.00043835,31]
[312812301,1706287879710,-947.99,0.00043835,31]
[312812302,1706287879743,-3559.75,0.00043835,31]
[312812303,1706287879762,-79593.34,0.00043835,10]
[312812304,1706287879776,-500.0,0.00043835,31]